fUSD/lending_fUSD_20260616
["ID","MTS","AMOUNT","RATE_DAILY","PERIOD"]
[425136669,1781542906000,432.0,0.00030062,30]
[425136675,1781542907000,432.0,0.00034062,30]
[425136676,1781542907000,159.75,0.00029066,30]
[425136679,1781542907000,553.47712124,0.0003826,120]
[425136677,1781542907000,553.47712124,0.0003826,120]
[425136678,1781542907000,213.37,0.00028983,30]
[425136680,1781542907000,553.47712124,0.0003826,120]
[425136684,1781542907000,213.37,0.00032107,30]
[425136683,1781542907000,553.47712124,0.0003826,120]
[425136687,1781542907000,158.21,0.00033077,30]
[425136686,1781542907000,553.47712124,0.0003826,120]
[425136681,1781542907000,158.21,0.00029119,30]
[425136682,1781542907000,432.0,0.00035062,30]
[425136685,1781542907000,553.47712124,0.0003826,120]
[425136691,1781542908000,500.0,0.00038356,30]
[425136690,1781542908000,154.46,0.0003221,30]
[425136689,1781542908000,500.0,0.00038356,120]
[425136688,1781542908000,553.47712124,0.0003826,120]
[425136692,1781542909000,154.46,0.00037205,30]
[425136693,1781542912000,312.37,0.00035616,30]
[425136694,1781542914000,50000.0,0.00038123,37]
[425136695,1781542916000,161.42,0.00029153,30]
[425136696,1781542918000,336.82088666,0.00036712,60]
[425136699,1781542924000,165.59,0.000383,120]
[425136698,1781542924000,433.1,0.00036153,30]
[425136697,1781542924000,433.1,0.00038125,30]
[425136700,1781542941000,-781.50392675,9.422e-05,2]
[425136701,1781542941000,536.82576006,0.00038356,120]
[425136707,1781542942000,50000.0,0.00038123,38]
[425136702,1781542942000,151.0,0.00037627,30]
[425136703,1781542942000,151.0,0.00038138,30]
[425136706,1781542942000,209.90942,0.00038138,30]
[425136705,1781542942000,151.0,0.00038138,30]
[425136704,1781542942000,165.0,0.00038138,120]
[425136708,1781542943000,165.0,0.00029069,30]
[425136710,1781542944000,168.1627363,0.00030069,30]
[425136709,1781542944000,50000.0,0.00038123,39]
[425136711,1781542945000,2203.77432853,0.00038124,120]
[425136712,1781542945000,165.59,0.000383,120]
[425136714,1781542948000,282.2437,0.00037627,30]
[425136713,1781542948000,1502.77,0.00038356,30]
[425136715,1781542950000,150.0,0.00036854,120]
[425136716,1781542952000,159.0,0.00038138,120]
[425136717,1781542953000,151.0,0.00037627,30]
[425136719,1781542953000,151.0,0.00038138,30]
[425136718,1781542953000,50000.0,0.00038123,40]
[425136720,1781542954000,151.0,0.00038138,30]
[425136722,1781542954000,151.0,0.00038138,30]
[425136721,1781542954000,150.0,0.00038356,30]
[425136723,1781542957000,300.0,0.00037356,30]
[425136724,1781542962000,159.0,0.00029069,30]
[425136726,1781542964000,159.0,0.00030069,30]
[425136725,1781542964000,235.83322637,0.00037972,120]
[425136728,1781542965000,165.59,0.000383,120]
[425136727,1781542965000,159.0,0.00031069,30]
[425136730,1781542967000,397.5,0.00034423,30]
[425136729,1781542967000,159.0,0.00032069,30]
[425136731,1781542968000,165.0,0.00033069,30]
[425136732,1781542973000,412234.0,0.000364,30]
[425136733,1781542973000,412234.0,0.000376,30]
[425136734,1781542975000,167.13,0.00029205,30]
[425136737,1781542976000,334.63,0.000293,30]
[425136736,1781542976000,500.0,0.00038356,30]
[425136735,1781542976000,153.0,0.00038138,120]
[425136739,1781542978000,155.88,0.00032264,30]
[425136738,1781542978000,516.5786465,0.0003826,120]
[425136740,1781542979000,516.57864649,0.0003826,120]
[425136747,1781542995000,266.14,0.00035616,60]
[425136741,1781542995000,-500.0,9.422e-05,2]
[425136742,1781542995000,516.57864649,0.00038274,120]
[425136743,1781542995000,516.57864649,0.00038274,120]
[425136748,1781542995000,266.14,0.00038356,60]
[425136745,1781542995000,516.57864649,0.00038274,120]
[425136746,1781542995000,266.14,0.00035616,30]
[425136744,1781542995000,155.9,0.00037205,30]
[425136758,1781542996000,151.0,0.00038138,30]
[425136749,1781542996000,162.53,0.0002924,30]
[425136756,1781542996000,151.0,0.00038138,30]
[425136755,1781542996000,151.0,0.00037627,30]
[425136754,1781542996000,50000.0,0.00038137,42]
[425136752,1781542996000,6696.12856128,0.00038356,120]
[425136753,1781542996000,50000.0,0.00038137,41]
[425136751,1781542996000,200.61,0.00032166,30]
[425136750,1781542996000,200.61,0.00029071,30]
[425136757,1781542996000,151.0,0.00038138,30]
[425136759,1781542997000,159.075874,0.00038138,30]
[425136760,1781542997000,50000.0,0.00038137,43]
[425136761,1781542997000,707.12,0.00038356,120]
[425136764,1781542997000,580.41067795,0.0003737,120]
[425136762,1781542997000,316.13,0.00038356,60]
[425136763,1781542997000,1001.0,0.00031945,120]
[425136765,1781542998000,160.51,0.00029324,30]
[425136768,1781542999000,161.63,0.00033131,30]
[425136767,1781542999000,187.51,0.00029159,30]
[425136766,1781542999000,50000.0,0.00038137,44]
[425136769,1781543000000,187.51,0.00032224,30]
[425136771,1781543004000,151.0,0.00038138,30]
[425136770,1781543004000,151.0,0.00037627,30]
[425136772,1781543006000,165.59,0.000383,120]
[425136774,1781543006000,151.0,0.00038138,30]
[425136773,1781543006000,151.0,0.00038138,30]
[425136775,1781543006000,151.0,0.00038138,30]
[425136777,1781543007000,2203.77432853,0.00038138,120]
[425136776,1781543007000,171.095494,0.00037627,30]
[425136779,1781543010000,150.0,0.00037686,120]
[425136778,1781543010000,14280.53,0.00038356,60]
[425136781,1781543018000,151.0,0.00037627,30]
[425136782,1781543019000,151.0,0.00038138,30]
[425136784,1781543019000,151.0,0.00038138,30]
[425136783,1781543019000,151.0,0.00037627,30]
[425136786,1781543020000,151.0,0.00038138,30]
[425136785,1781543020000,151.0,0.00038138,30]
[425136788,1781543021000,151.0,0.00038138,30]
[425136787,1781543021000,151.0,0.00038138,30]
[425136791,1781543022000,151.0,0.00038138,30]
[425136790,1781543022000,151.0,0.00037627,30]
[425136789,1781543022000,927.66050346,0.000361,30]
[425136793,1781543023000,50000.0,0.00038137,45]
[425136792,1781543023000,228.189308,0.00038138,30]
[425136794,1781543024000,205.50166077,0.00037972,120]
[425136796,1781543027000,927.66050344,0.000361,30]
[425136795,1781543027000,152.0,0.00038124,120]
[425136797,1781543031000,340211.8671676,0.00038356,30]
[425136798,1781543032000,927.66050344,0.000361,30]
[425136799,1781543049000,-150.0,9.421e-05,2]
[425136800,1781543049000,152.0,0.00029062,30]
[425136802,1781543049000,163.41,0.00029291,30]
[425136803,1781543049000,150.0,0.00038356,30]
[425136801,1781543049000,159.80448742,0.00030062,30]
[425136804,1781543051000,573.97627388,0.00038274,120]
[425136807,1781543051000,160.13,0.00029409,30]
[425136806,1781543051000,573.97627388,0.00038274,120]
[425136805,1781543051000,455.00391565,0.00038356,30]
[425136811,1781543052000,418.4,0.00034,30]
[425136810,1781543052000,160.35,0.00029244,30]
[425136809,1781543052000,161.33,0.00029375,30]
[425136808,1781543052000,573.97627388,0.00038274,120]
[425136812,1781543053000,160.35,0.00032281,30]
[425136814,1781543054000,159.03,0.00033175,30]
[425136813,1781543054000,151.0,0.00038138,120]
[425136815,1781543057000,500.0,0.00028879,120]
[425136816,1781543057000,500.0,0.00028879,120]
[425136818,1781543060000,500.0,0.00028972,120]
[425136817,1781543060000,500.0,0.00028879,120]
[425136819,1781543062000,277.24,0.00035,30]
[425136820,1781543065000,1000.0,0.00038356,30]
[425136822,1781543067000,150.0,0.00038082,60]
[425136821,1781543067000,160.616698,0.00037627,30]
[425136823,1781543068000,150.0,0.00038082,60]
[425136824,1781543068000,150.0,0.00038082,60]
[425136826,1781543068000,241.95,0.00035616,30]
[425136827,1781543068000,150.0,0.00035616,60]
[425136825,1781543068000,241.46903655,0.00038082,60]
[425136830,1781543069000,150.0,0.00037808,60]
[425136829,1781543069000,150.0,0.00036712,60]
[425136828,1781543069000,2203.77432853,0.00038138,120]
[425136831,1781543072000,151.24610226,0.000361,30]
[425136833,1781543077000,151.24610226,0.000361,30]
[425136832,1781543077000,200.0,0.00037356,30]
[425136834,1781543079000,169.57,0.00034521,120]
[425136836,1781543082000,151.24610226,0.000361,30]
[425136835,1781543082000,3000.0,0.00038356,30]
[425136837,1781543085000,179.07117343,0.00037972,120]
[425136839,1781543102000,153.0,0.00038138,120]
[425136838,1781543102000,-500.0,9.421e-05,2]
[425136842,1781543103000,151.0,0.00038138,30]
[425136843,1781543103000,151.0,0.00038138,30]
[425136840,1781543103000,3328.0,0.00038356,30]
[425136841,1781543103000,151.0,0.00037627,30]
[425136844,1781543103000,151.0,0.00038138,30]
[425136847,1781543103000,153.0,0.00029069,30]
[425136846,1781543103000,155.29442,0.00037627,30]
[425136850,1781543103000,153.0,0.00032069,30]
[425136845,1781543103000,151.0,0.00038138,30]
[425136848,1781543103000,153.0,0.00030069,30]
[425136849,1781543103000,153.0,0.00031069,30]
[425136852,1781543104000,153.0,0.00034069,30]
[425136851,1781543104000,153.0,0.00033069,30]
[425136853,1781543104000,500.0,0.00038356,30]
[425136855,1781543109000,500.0,0.0003745,40]
[425136854,1781543109000,500.0,0.00036359,34]
[425136857,1781543110000,194.50273951,0.00028877,30]
[425136856,1781543110000,150.0,0.00028155,30]
[425136858,1781543112000,150.0,0.00028877,30]
[425136859,1781543115000,698.0,0.00038138,120]
[425136860,1781543117000,162.53,0.00029492,30]
[425136861,1781543119000,160.43,0.0002933,30]
[425136862,1781543120000,160.43,0.00032714,30]
[425136863,1781543120000,152.0,0.00038356,30]
[425136864,1781543121000,756.50538412,0.000361,30]
[425136865,1781543122000,573.97627388,0.00038274,120]
[425136866,1781543122000,13090.48,0.00038138,30]
[425136868,1781543122000,573.97627388,0.00038274,120]
[425136867,1781543122000,152.0,0.00038356,30]
[425136870,1781543125000,151.0,0.00038356,30]
[425136869,1781543125000,698.0,0.00029069,30]
[425136872,1781543126000,698.0,0.00030069,30]
[425136871,1781543126000,161.87,0.00029459,30]
[425136874,1781543127000,698.0,0.00031069,30]
[425136873,1781543127000,156.49,0.00033218,30]
[425136875,1781543128000,151.0,0.00037627,30]
[425136876,1781543129000,698.0,0.00032069,30]
[425136878,1781543129000,160.644277,0.00038138,30]
[425136877,1781543129000,151.0,0.00038138,30]
[425136881,1781543130000,2203.77432853,0.00038138,120]
[425136879,1781543130000,698.0,0.00033069,30]
[425136882,1781543131000,151.0,0.00037627,30]
[425136885,1781543132000,756.50538411,0.000361,30]
[425136884,1781543132000,756.50538411,0.000361,30]
[425136883,1781543132000,698.0,0.00034069,30]
[425136886,1781543133000,698.0,0.00035069,30]
[425136887,1781543134000,151.0,0.00037627,30]
[425136889,1781543136000,323.817608,0.00038356,30]
[425136888,1781543136000,323.817608,0.00038356,30]
[425136891,1781543137000,323.817608,0.00038356,30]
[425136890,1781543137000,323.817608,0.00038356,30]
[425136894,1781543138000,323.817608,0.00038356,30]
[425136893,1781543138000,323.817608,0.00038356,30]
[425136892,1781543138000,323.817608,0.00038356,30]
[425136896,1781543139000,323.817608,0.00038356,30]
[425136895,1781543139000,323.817608,0.00038356,30]
[425136897,1781543140000,323.817608,0.00038356,30]
[425136898,1781543140000,323.817608,0.00038356,30]
[425136900,1781543141000,323.817608,0.00038356,30]
[425136899,1781543141000,323.817608,0.00038356,30]
[425136902,1781543142000,323.817608,0.00038356,30]
[425136901,1781543142000,323.817608,0.00038356,30]
[425136904,1781543143000,323.817608,0.00038356,30]
[425136903,1781543143000,323.817608,0.00038356,30]
[425136905,1781543144000,323.817608,0.00038356,30]
[425136906,1781543144000,323.817608,0.00038356,30]
[425136907,1781543144000,323.817615,0.00038356,30]
[425136908,1781543146000,156.04002923,0.00037972,120]
[425136909,1781543147000,220.98,0.00035616,30]
[425136913,1781543148000,159.15,0.00038,30]
[425136912,1781543148000,220.98,0.00037808,60]
[425136911,1781543148000,150.0,0.00036712,60]
[425136910,1781543148000,150.0,0.00035616,60]
[425136914,1781543152000,7935.0,0.000377,117]
[425136915,1781543154000,50000.0,0.00038137,46]
[425136917,1781543155000,163.57,0.00029542,30]
[425136916,1781543155000,160.13,0.00029574,30]
[425136918,1781543160000,50000.0,0.00038137,47]
[425136919,1781543161000,212.19633938,0.00035,120]
[425136920,1781543164000,1209.79,0.00036545,30]
[425136921,1781543165000,1173.5,0.00037641,30]
[425136922,1781543166000,250.97,0.000294,30]
[425136923,1781543167000,1183.0,0.00038138,120]
[425136924,1781543169000,500.0,0.000383,30]
[425136925,1781543170000,500.0,0.00038356,30]
[425136926,1781543176000,743.05,0.00036545,30]
[425136927,1781543176000,1183.0,0.00029069,30]
[425136928,1781543177000,198.66,0.00037622,120]
[425136930,1781543178000,720.76,0.00037641,30]
[425136929,1781543178000,1183.0,0.00030069,30]
[425136933,1781543180000,1183.0,0.00032069,30]
[425136932,1781543180000,1149.76,0.000371,60]
[425136931,1781543180000,1183.0,0.00031069,30]
[425136934,1781543181000,204.375841,0.00034,120]
[425136935,1781543182000,1183.0,0.00033069,30]
[425136936,1781543183000,1183.0,0.00034069,30]
[425136937,1781543184000,1183.0,0.00035069,30]
[425136938,1781543189000,765.3016985,0.00038274,120]
[425136939,1781543191000,150.0,0.00038298,120]
[425136940,1781543193000,2203.77432853,0.00038138,120]
[425136941,1781543194000,154.64,0.00029413,30]
[425136942,1781543195000,154.64,0.00032766,30]
[425136944,1781543196000,150.0,0.0003105,30]
[425136943,1781543196000,150.0,0.00030137,30]
[425136945,1781543197000,150.0,0.00031963,30]
[425136946,1781543197000,150.0,0.00035616,60]
[425136947,1781543198000,270.97,0.00038138,30]
[425136949,1781543199000,151.0,0.00037627,30]
[425136948,1781543199000,872.10815035,0.00035616,60]
[425136950,1781543200000,151.0,0.00038138,30]
[425136951,1781543202000,180.85,0.00034575,30]
[425136952,1781543213000,-150.0,9.421e-05,2]
[425136953,1781543213000,-500.0,9.421e-05,2]
[425136954,1781543213000,-500.0,9.421e-05,2]
[425136956,1781543213000,-262.02258305,9.421e-05,2]
[425136955,1781543213000,-497.28411678,9.421e-05,2]
[425136958,1781543214000,151.0,0.00038138,30]
[425136957,1781543214000,151.0,0.00037627,30]
[425136959,1781543216000,154.0,0.00038138,120]
[425136961,1781543222000,162.97,0.00029623,30]
[425136960,1781543222000,50000.0,0.00038356,48]
[425136963,1781543224000,181.24391002,0.00038082,60]
[425136962,1781543224000,150.0,0.00038082,60]
[425136964,1781543226000,1098.86,0.00036545,30]
[425136965,1781543227000,151.0,0.00037627,30]
[425136967,1781543227000,151.0,0.00038138,30]
[425136966,1781543227000,196.795673,0.00037627,30]
[425136969,1781543228000,1065.9,0.00037641,30]
[425136968,1781543228000,50000.0,0.00038356,49]
[425136971,1781543230000,151.0,0.00038138,30]
[425136970,1781543230000,151.0,0.00037627,30]
[425136973,1781543231000,151.0,0.00038138,30]
[425136972,1781543231000,151.0,0.00038138,30]
[425136974,1781543232000,151.0,0.00038138,30]
[425136981,1781543233000,151.0,0.00038138,30]
[425136979,1781543233000,50000.0,0.00038356,50]
[425136978,1781543233000,151.0,0.00038138,30]
[425136977,1781543233000,360.9,0.00036153,30]
[425136976,1781543233000,360.9,0.00038125,30]
[425136975,1781543233000,151.0,0.00037627,30]
[425136980,1781543233000,151.0,0.00038138,30]
[425136982,1781543234000,245.993416,0.00038138,30]
[425136983,1781543236000,500.0,0.00038356,30]
[425136984,1781543238000,50000.0,0.00038356,51]
[425136985,1781543239000,11999.61,0.00038138,30]
[425136986,1781543243000,152.0,0.00038138,120]
[425136987,1781543247000,376.56,0.00038,30]
[425136988,1781543248000,371.06420138,0.000361,30]
[425136989,1781543250000,150.0,0.0003696,120]
[425136990,1781543252000,152.0,0.00029069,30]
[425136992,1781543253000,152.0,0.00030069,30]
[425136991,1781543253000,371.06420138,0.000361,30]
[425136993,1781543254000,183.548339,0.000375,30]
[425136994,1781543254000,152.0,0.00031069,30]
[425136995,1781543254000,510.20113234,0.00038274,120]
[425136996,1781543255000,2203.77432853,0.00038138,120]
[425136998,1781543256000,151.0,0.00038138,30]
[425136997,1781543256000,151.0,0.000375,30]
[425136999,1781543257000,249.52,0.00036,30]
[425137001,1781543258000,151.0,0.00038138,30]
[425137000,1781543258000,151.0,0.00038138,30]
[425137002,1781543258000,151.0,0.00038138,30]
[425137006,1781543258000,175.46862,0.00038138,30]
[425137004,1781543258000,371.06420138,0.000361,30]
[425137003,1781543258000,152.0,0.00032069,30]
[425137005,1781543258000,151.0,0.000375,30]
[425137007,1781543259000,152.0,0.00033069,30]
[425137008,1781543261000,152.0,0.00034069,30]
[425137009,1781543278000,-500.0,9.42e-05,2]
[425137010,1781543278000,152.0,0.00035069,30]
[425137014,1781543278000,181.49532271,0.000361,30]
[425137012,1781543278000,151.0,0.000375,30]
[425137013,1781543278000,153.88,0.00035616,30]
[425137011,1781543278000,157.08,0.00029497,30]
[425137015,1781543332000,-195.0318973,9.419e-05,2]
[425137016,1781543333000,-500.0,9.419e-05,2]
[425137017,1781543333000,-500.0,9.419e-05,2]
[425137020,1781543333000,-500.0,9.419e-05,2]
[425137018,1781543333000,-242.5432494,9.419e-05,2]
[425137019,1781543333000,-500.0,9.419e-05,2]
[425137022,1781543333000,-505.77964463,9.419e-05,2]
[425137021,1781543333000,-113.7124622,9.419e-05,2]
[425137024,1781543333000,-263.80156667,9.419e-05,2]
[425137026,1781543333000,-500.0,9.419e-05,2]
[425137025,1781543333000,-447.74018875,9.419e-05,2]
[425137027,1781543333000,-500.0,9.419e-05,2]
[425137028,1781543333000,-500.0,9.419e-05,2]
[425137029,1781543333000,-144.71395618,9.419e-05,2]
[425137023,1781543333000,-236.19843333,9.419e-05,2]
[425137030,1781543348000,-150.0,9.418e-05,2]
[425137032,1781543348000,-500.0,9.419e-05,2]
[425137031,1781543348000,-355.28604382,9.419e-05,2]
[425137034,1781543348000,-500.0,9.419e-05,2]
[425137033,1781543348000,-500.0,9.419e-05,2]
[425137035,1781543348000,-197.41541426,9.419e-05,2]
[425137037,1781543348000,-237.35595646,9.419e-05,2]
[425137040,1781543348000,-436.08113415,9.419e-05,2]
[425137036,1781543348000,-262.64404354,9.419e-05,2]
[425137039,1781543348000,-500.0,9.419e-05,2]
[425137038,1781543348000,-500.0,9.419e-05,2]
[425137041,1781543385000,-63.91886585,9.419e-05,2]
[425137044,1781543386000,-500.0,9.419e-05,2]
[425137045,1781543386000,-0.10282987,9.419e-05,2]
[425137047,1781543386000,-500.0,9.419e-05,2]
[425137042,1781543386000,-500.0,9.419e-05,2]
[425137048,1781543386000,-500.0,9.419e-05,2]
[425137050,1781543386000,-500.0,9.419e-05,2]
[425137049,1781543386000,-500.0,9.419e-05,2]
[425137051,1781543386000,-48.22398334,9.419e-05,2]
[425137046,1781543386000,-499.89717013,9.419e-05,2]
[425137043,1781543386000,-500.0,9.419e-05,2]
[425137052,1781543398000,-451.77601666,9.419e-05,2]
[425137060,1781543398000,-379.7015655,9.419e-05,2]
[425137058,1781543398000,-322.69038353,9.419e-05,2]
[425137059,1781543398000,-500.0,9.419e-05,2]
[425137057,1781543398000,-177.30961647,9.419e-05,2]
[425137055,1781543398000,-500.0,9.419e-05,2]
[425137053,1781543398000,-500.0,9.419e-05,2]
[425137054,1781543398000,-500.0,9.419e-05,2]
[425137056,1781543398000,-500.0,9.419e-05,2]
[425137061,1781543399000,-500.0,9.419e-05,2]
[425137063,1781543399000,-426.6936841,9.419e-05,2]
[425137062,1781543399000,-500.0,9.419e-05,2]
[425137085,1781543439000,-73.3063159,9.419e-05,2]
[425137112,1781543440000,-940.00479401,9.419e-05,2]
[425137116,1781543440000,-940.00479401,9.419e-05,2]
[425137115,1781543440000,-940.00479401,9.419e-05,2]
[425137121,1781543440000,-940.00479401,9.419e-05,2]
[425137123,1781543440000,-940.00479401,9.419e-05,2]
[425137124,1781543440000,-940.00479401,9.419e-05,2]
[425137126,1781543440000,-940.00479401,9.419e-05,2]
[425137125,1781543440000,-940.00479401,9.419e-05,2]
[425137127,1781543440000,-940.00479401,9.419e-05,2]
[425137129,1781543440000,-940.00479401,9.419e-05,2]
[425137128,1781543440000,-940.00479401,9.419e-05,2]
[425137131,1781543440000,-940.00479401,9.419e-05,2]
[425137142,1781543440000,-892.17998871,9.419e-05,2]
[425137122,1781543440000,-940.00479401,9.419e-05,2]
[425137132,1781543440000,-940.00479401,9.419e-05,2]
[425137134,1781543440000,-940.00479401,9.419e-05,2]
[425137136,1781543440000,-940.00479401,9.419e-05,2]
[425137135,1781543440000,-940.00479401,9.419e-05,2]
[425137133,1781543440000,-940.00479401,9.419e-05,2]
[425137137,1781543440000,-892.17998871,9.419e-05,2]
[425137139,1781543440000,-892.17998871,9.419e-05,2]
[425137143,1781543440000,-892.17998871,9.419e-05,2]
[425137141,1781543440000,-892.17998871,9.419e-05,2]
[425137138,1781543440000,-892.17998871,9.419e-05,2]
[425137140,1781543440000,-892.17998871,9.419e-05,2]
[425137130,1781543440000,-940.00479401,9.419e-05,2]
[425137114,1781543440000,-940.00479401,9.419e-05,2]
[425137109,1781543440000,-940.00479401,9.419e-05,2]
[425137108,1781543440000,-940.00479401,9.419e-05,2]
[425137087,1781543440000,-500.0,9.419e-05,2]
[425137088,1781543440000,-500.0,9.419e-05,2]
[425137086,1781543440000,-500.0,9.419e-05,2]
[425137089,1781543440000,-500.0,9.419e-05,2]
[425137090,1781543440000,-500.0,9.419e-05,2]
[425137092,1781543440000,-500.0,9.419e-05,2]
[425137094,1781543440000,-500.0,9.419e-05,2]
[425137095,1781543440000,-500.0,9.419e-05,2]
[425137091,1781543440000,-500.0,9.419e-05,2]
[425137093,1781543440000,-500.0,9.419e-05,2]
[425137096,1781543440000,-500.0,9.419e-05,2]
[425137113,1781543440000,-940.00479401,9.419e-05,2]
[425137097,1781543440000,-940.00479401,9.419e-05,2]
[425137107,1781543440000,-940.00479401,9.419e-05,2]
[425137099,1781543440000,-940.00479401,9.419e-05,2]
[425137106,1781543440000,-580.04314609,9.419e-05,2]
[425137100,1781543440000,-940.00479401,9.419e-05,2]
[425137101,1781543440000,-940.00479401,9.419e-05,2]
[425137104,1781543440000,-940.00479401,9.419e-05,2]
[425137105,1781543440000,-359.96164792,9.419e-05,2]
[425137118,1781543440000,-940.00479401,9.419e-05,2]
[425137111,1781543440000,-940.00479401,9.419e-05,2]
[425137120,1781543440000,-940.00479401,9.419e-05,2]
[425137110,1781543440000,-940.00479401,9.419e-05,2]
[425137098,1781543440000,-940.00479401,9.419e-05,2]
[425137144,1781543440000,-892.17998871,9.419e-05,2]
[425137103,1781543440000,-940.00479401,9.419e-05,2]
[425137145,1781543440000,-892.17998871,9.419e-05,2]
[425137177,1781543440000,-300.0,0.00010363,2]
[425137176,1781543440000,-250.0,0.00010361,2]
[425137183,1781543440000,-9144.1244,0.00010859,2]
[425137182,1781543440000,-500.0,0.00010793,2]
[425137184,1781543440000,-2920.7593,0.00010859,2]
[425137185,1781543440000,-242.11,0.00010879,2]
[425137187,1781543440000,-150.0,0.00010959,2]
[425137188,1781543440000,-150.0,0.00010959,2]
[425137186,1781543440000,-166.66,0.00010959,2]
[425137190,1781543440000,-165.45,0.00011084,2]
[425137191,1781543440000,-166.66,0.00011178,2]
[425137192,1781543440000,-166.66,0.00011288,2]
[425137175,1781543440000,-255.0,0.0001036,2]
[425137189,1781543440000,-166.66,0.00011068,2]
[425137195,1781543440000,-166.66,0.00011397,2]
[425137198,1781543440000,-166.66,0.00011507,2]
[425137194,1781543440000,-433.0,0.00011396,2]
[425137196,1781543440000,-2000.0,0.00011442,2]
[425137197,1781543440000,-1600.0,0.00011499,2]
[425137199,1781543440000,-165.45,0.00011542,2]
[425137203,1781543440000,-206.0,0.000119,2]
[425137201,1781543440000,-1597.38,0.00011622,2]
[425137202,1781543440000,-4181.8847,0.000119,2]
[425137200,1781543440000,-169.98,0.00011612,2]
[425137204,1781543440000,-1597.38,0.00011906,2]
[425137153,1781543440000,-892.17998871,9.419e-05,2]
[425137193,1781543440000,-1597.38,0.00011339,2]
[425137173,1781543440000,-2000.0,0.00010171,2]
[425137102,1781543440000,-940.00479401,9.419e-05,2]
[425137180,1781543440000,-471.96,0.00010698,2]
[425137148,1781543440000,-892.17998871,9.419e-05,2]
[425137174,1781543440000,-1600.0,0.00010221,2]
[425137146,1781543440000,-892.17998871,9.419e-05,2]
[425137151,1781543440000,-892.17998871,9.419e-05,2]
[425137149,1781543440000,-892.17998871,9.419e-05,2]
[425137150,1781543440000,-892.17998871,9.419e-05,2]
[425137152,1781543440000,-892.17998871,9.419e-05,2]
[425137155,1781543440000,-500.0,9.419e-05,2]
[425137166,1781543440000,-466.11,9.827e-05,2]
[425137165,1781543440000,-200.0,9.806e-05,2]
[425137167,1781543440000,-1880.74,9.833e-05,2]
[425137154,1781543440000,-892.17998871,9.419e-05,2]
[425137168,1781543440000,-18166.33,9.879e-05,2]
[425137147,1781543440000,-892.17998871,9.419e-05,2]
[425137181,1781543440000,-169.98,0.00010782,2]
[425137169,1781543440000,-1852.42,9.908e-05,2]
[425137158,1781543440000,-160.0,9.419e-05,2]
[425137164,1781543440000,-1000.0,9.753e-05,2]
[425137160,1781543440000,-150.0,9.421e-05,2]
[425137162,1781543440000,-250.0,9.422e-05,2]
[425137163,1781543440000,-216.09656886,9.437e-05,2]
[425137170,1781543440000,-2452.87,9.914e-05,2]
[425137171,1781543440000,-169.98,9.953e-05,2]
[425137178,1781543440000,-250.0,0.00010363,2]